fUSD/lending_fUSD_20260617
["ID","MTS","AMOUNT","RATE_DAILY","PERIOD"]
[425280767,1781641840000,-500.0,0.00015068,7]
[425280766,1781641840000,-500.0,0.00015068,7]
[425280765,1781641840000,-500.0,0.00015068,7]
[425280764,1781641840000,-500.0,0.00015068,7]
[425280769,1781641840000,-500.0,0.00015068,7]
[425280768,1781641840000,-500.0,0.00015068,7]
[425280770,1781641840000,-500.0,0.00015068,7]
[425280772,1781641840000,-500.0,0.00015068,7]
[425280773,1781641840000,-500.0,0.00015068,7]
[425280771,1781641840000,-500.0,0.00015068,7]
[425280761,1781641840000,-150.0,0.00015059,2]
[425280775,1781641840000,-500.0,0.00015068,7]
[425280774,1781641840000,-500.0,0.00015068,7]
[425280778,1781641840000,-500.0,0.00015068,7]
[425280779,1781641840000,-500.0,0.00015068,7]
[425280780,1781641840000,-500.0,0.00015068,7]
[425280781,1781641840000,-500.0,0.00015068,7]
[425280782,1781641840000,-500.0,0.00015068,7]
[425280784,1781641840000,-150.0,0.00015068,2]
[425280783,1781641840000,-615.86,0.00015068,7]
[425280786,1781641840000,-150.0,0.00015207,2]
[425280787,1781641840000,-500.0,0.00015273,2]
[425280785,1781641840000,-5398.12724256,0.0001508,2]
[425280728,1781641840000,-500.0,0.00014999,2]
[425280776,1781641840000,-500.0,0.00015068,7]
[425280759,1781641840000,-151.0,0.00015,2]
[425280777,1781641840000,-500.0,0.00015068,7]
[425280758,1781641840000,-1627.47,0.00015,2]
[425280726,1781641840000,-500.0,0.00014999,2]
[425280760,1781641840000,-350.0,0.00015039,2]
[425280732,1781641840000,-500.0,0.00014999,2]
[425280729,1781641840000,-500.0,0.00014999,2]
[425280734,1781641840000,-500.0,0.00014999,2]
[425280735,1781641840000,-500.0,0.00014999,2]
[425280738,1781641840000,-500.0,0.00014999,2]
[425280737,1781641840000,-500.0,0.00014999,2]
[425280736,1781641840000,-500.0,0.00014999,2]
[425280745,1781641840000,-500.0,0.00014999,2]
[425280742,1781641840000,-500.0,0.00014999,2]
[425280740,1781641840000,-500.0,0.00014999,2]
[425280741,1781641840000,-500.0,0.00014999,2]
[425280743,1781641840000,-500.0,0.00014999,2]
[425280739,1781641840000,-500.0,0.00014999,2]
[425280753,1781641840000,-500.0,0.00014999,2]
[425280755,1781641840000,-175.2,0.00014999,2]
[425280744,1781641840000,-500.0,0.00014999,2]
[425280756,1781641840000,-8146904.67596952,0.00015,2]
[425280757,1781641840000,-151.0,0.00015,2]
[425280751,1781641840000,-500.0,0.00014999,2]
[425280752,1781641840000,-500.0,0.00014999,2]
[425280754,1781641840000,-500.0,0.00014999,2]
[425280749,1781641840000,-156.27332803,0.00014999,2]
[425280750,1781641840000,-500.0,0.00014999,2]
[425280747,1781641840000,-500.0,0.00014999,2]
[425280746,1781641840000,-500.0,0.00014999,2]
[425280748,1781641840000,-500.0,0.00014999,2]
[425280844,1781641841000,-350.0,0.00018,2]
[425280826,1781641841000,-450.0,0.00017281,2]
[425280828,1781641841000,-1127.826491,0.00017341,2]
[425280830,1781641841000,-1127.826491,0.00017469,2]
[425280827,1781641841000,-1627.47,0.000173,2]
[425280822,1781641841000,-152.47786323,0.00016953,2]
[425280825,1781641841000,-1127.826491,0.00017213,2]
[425280824,1781641841000,-433.0,0.00017168,2]
[425280823,1781641841000,-1127.826491,0.00017085,2]
[425280821,1781641841000,-168.54,0.00016712,2]
[425280829,1781641841000,-152.0,0.00017445,2]
[425280820,1781641841000,-439.82,0.00016671,2]
[425280832,1781641841000,-1500.0,0.00017488,2]
[425280845,1781641841000,-1555.5,0.00018036,2]
[425280843,1781641841000,-4976.44578028,0.00018,2]
[425280833,1781641841000,-1127.826491,0.00017598,2]
[425280834,1781641841000,-3654.65891168,0.000176,2]
[425280831,1781641841000,-164.14,0.00017479,2]
[425280837,1781641841000,-3654.65891168,0.000178,2]
[425280835,1781641841000,-9461.13078759,0.000176,2]
[425280836,1781641841000,-1205.19,0.00017601,2]
[425280841,1781641841000,-3654.65891168,0.00018,2]
[425280838,1781641841000,-9461.13078759,0.000178,2]
[425280840,1781641841000,-852.71202651,0.00018,2]
[425280839,1781641841000,-152.17690273,0.00017926,2]
[425280846,1781641841000,-852.71202651,0.000182,2]
[425280819,1781641841000,-164.14,0.00016568,2]
[425280842,1781641841000,-9461.13078759,0.00018,2]
[425280818,1781641841000,-230.84,0.00016438,2]
[425280790,1781641841000,-1205.19,0.00015841,2]
[425280813,1781641841000,-250.0,0.00016218,2]
[425280788,1781641841000,-196.0,0.00015355,2]
[425280789,1781641841000,-437.49843067,0.00015547,2]
[425280791,1781641841000,-716.2462984,0.00015864,2]
[425280792,1781641841000,-155.55967759,0.000159,2]
[425280794,1781641841000,-150.0,0.000159,2]
[425280804,1781641841000,-175.6,0.00016179,2]
[425280793,1781641841000,-150.0,0.000159,2]
[425280795,1781641841000,-450.0,0.00015911,2]
[425280796,1781641841000,-350.0,0.00015944,2]
[425280801,1781641841000,-337.16060604,0.00016,2]
[425280798,1781641841000,-180.0,0.00015983,2]
[425280799,1781641841000,-700.0,0.00015987,2]
[425280800,1781641841000,-300.0,0.00016,2]
[425280802,1781641841000,-337.16060604,0.000161,2]
[425280803,1781641841000,-170.03,0.00016136,2]
[425280797,1781641841000,-255.0,0.00015953,2]
[425280805,1781641841000,-337.16060604,0.000162,2]
[425280810,1781641841000,-200.0,0.00016218,2]
[425280806,1781641841000,-150.0,0.00016218,2]
[425280807,1781641841000,-600.0,0.00016218,2]
[425280808,1781641841000,-193.0,0.00016218,2]
[425280809,1781641841000,-300.0,0.00016218,2]
[425280814,1781641841000,-350.0,0.0001622,2]
[425280812,1781641841000,-200.0,0.00016218,2]
[425280816,1781641841000,-171.0319,0.00016437,2]
[425280817,1781641841000,-171.031884,0.00016438,2]
[425280811,1781641841000,-3407.01089023,0.00016218,2]
[425280815,1781641841000,-350.0,0.00016282,2]
[425280847,1781641841000,-3654.65891168,0.000182,2]
[425280868,1781641841000,-3654.65891168,0.000187,2]
[425280853,1781641841000,-164.14,0.00018391,2]
[425280882,1781641841000,-20487.75,0.00019178,2]
[425280881,1781641841000,-1672.7364795,0.00019132,2]
[425280885,1781641841000,-4976.44578028,0.000193,2]
[425280886,1781641841000,-164.14,0.00019302,2]
[425280884,1781641841000,-9461.13078759,0.000193,2]
[425280887,1781641841000,-186.1,0.00019339,7]
[425280888,1781641841000,-4885.01,0.00019339,2]
[425280883,1781641841000,-3654.65891168,0.000193,2]
[425280889,1781641841000,-340.96,0.00019339,2]
[425280891,1781641841000,-39894.55,0.00019339,2]
[425280894,1781641841000,-413.0,0.00019452,2]
[425280895,1781641841000,-368.0,0.00019452,2]
[425280893,1781641841000,-1205.19,0.00019361,2]
[425280896,1781641841000,-4976.44578028,0.000195,2]
[425280892,1781641841000,-150.99,0.00019339,2]
[425280899,1781641841000,-250.0,0.00019726,2]
[425280898,1781641841000,-4976.44578028,0.000197,2]
[425280897,1781641841000,-1734.62772924,0.0001968,2]
[425280900,1781641841000,-250.0,0.00019726,2]
[425280902,1781641841000,-1252.0,0.00019867,2]
[425280901,1781641841000,-199.5,0.00019744,2]
[425280904,1781641841000,-205.0,0.0002,2]
[425280903,1781641841000,-200000.0,0.0002,2]
[425280905,1781641841000,-228.0,0.0002,2]
[425280907,1781641841000,-1292.0,0.0002,2]
[425280906,1781641841000,-1685.44690976,0.0002,2]
[425280850,1781641841000,-3654.65891168,0.000183,2]
[425280879,1781641841000,-9461.13078759,0.000191,2]
[425280890,1781641841000,-9999.99,0.00019339,2]
[425280908,1781641841000,-1937.0,0.0002,2]
[425280878,1781641841000,-3654.65891168,0.000191,2]
[425280880,1781641841000,-4976.44578028,0.000191,2]
[425280851,1781641841000,-9461.13078759,0.000183,2]
[425280849,1781641841000,-4976.44578028,0.000182,2]
[425280848,1781641841000,-9461.13078759,0.000182,2]
[425280854,1781641841000,-852.71202651,0.000184,2]
[425280856,1781641841000,-231.29270581,0.000184,2]
[425280865,1781641841000,-439.82,0.00018524,2]
[425280855,1781641841000,-4976.44578028,0.000184,2]
[425280857,1781641841000,-231.29270581,0.000184,2]
[425280859,1781641841000,-736.0,0.00018473,2]
[425280861,1781641841000,-852.71202651,0.000185,2]
[425280858,1781641841000,-231.29270581,0.000184,2]
[425280860,1781641841000,-175.6,0.0001849,2]
[425280852,1781641841000,-89910.38,0.00018356,2]
[425280863,1781641841000,-9461.13078759,0.000185,2]
[425280875,1781641841000,-152.47786323,0.00018953,2]
[425280873,1781641841000,-4976.44578028,0.000189,2]
[425280872,1781641841000,-9461.13078759,0.000189,2]
[425280877,1781641841000,-1888.26790747,0.00019,2]
[425280864,1781641841000,-4976.44578028,0.000185,2]
[425280870,1781641841000,-4976.44578028,0.000187,2]
[425280871,1781641841000,-3654.65891168,0.000189,2]
[425280876,1781641841000,-1627.47,0.00019,2]
[425280869,1781641841000,-9461.13078759,0.000187,2]
[425280866,1781641841000,-1613.0535,0.00018584,2]
[425280867,1781641841000,-852.71202651,0.000187,2]
[425280862,1781641841000,-3654.65891168,0.000185,2]
[425280874,1781641841000,-270.483074,0.00018914,2]
[425280955,1781641842000,-1685.44690976,0.00021,2]
[425280937,1781641842000,-1685.44690976,0.000206,2]
[425280947,1781641842000,-152.17690273,0.00020952,2]
[425280946,1781641842000,-1627.47,0.000209,2]
[425280940,1781641842000,-1685.44690976,0.000208,2]
[425280943,1781641842000,-369.522938,0.00020821,2]
[425280944,1781641842000,-216.0,0.00020859,5]
[425280938,1781641842000,-955.06,0.00020641,2]
[425280939,1781641842000,-1865.36488656,0.00020776,2]
[425280942,1781641842000,-413.0,0.00020821,2]
[425280945,1781641842000,-512.0,0.00020859,5]
[425280957,1781641842000,-1937.0,0.00021,2]
[425280950,1781641842000,-7024.69083486,0.00021,2]
[425280959,1781641842000,-258.0,0.00021,2]
[425280958,1781641842000,-271.0,0.00021,2]
[425280949,1781641842000,-5389.90684301,0.00021,2]
[425280948,1781641842000,-152.47786323,0.00020953,2]
[425280951,1781641842000,-205.0,0.00021,2]
[425280954,1781641842000,-228.0,0.00021,2]
[425280953,1781641842000,-161.57413015,0.00021,2]
[425280952,1781641842000,-2699.06362128,0.00021,2]
[425280960,1781641842000,-584.0,0.00021,2]
[425280964,1781641842000,-263.0,0.00021,2]
[425280941,1781641842000,-175.6,0.00020802,2]
[425280963,1781641842000,-1109.0,0.00021,2]
[425280956,1781641842000,-1292.0,0.00021,2]
[425280936,1781641842000,-173.72555532,0.0002058,2]
[425280923,1781641842000,-190.51874357,0.0002,2]
[425280932,1781641842000,-11932.22,0.00020548,2]
[425280966,1781641842000,-603.0,0.00021,2]
[425280913,1781641842000,-377.0,0.0002,2]
[425280909,1781641842000,-271.0,0.0002,2]
[425280910,1781641842000,-258.0,0.0002,2]
[425280912,1781641842000,-340.0,0.0002,2]
[425280911,1781641842000,-584.0,0.0002,2]
[425280914,1781641842000,-1109.0,0.0002,2]
[425280917,1781641842000,-2385.372871,0.0002,2]
[425280915,1781641842000,-263.0,0.0002,2]
[425280916,1781641842000,-603.0,0.0002,2]
[425280922,1781641842000,-190.51874357,0.0002,2]
[425280924,1781641842000,-190.51874357,0.0002,2]
[425280918,1781641842000,-156.0,0.0002,2]
[425280919,1781641842000,-400.0,0.0002,2]
[425280921,1781641842000,-2000.0,0.0002,7]
[425280920,1781641842000,-23159.85,0.0002,2]
[425280926,1781641842000,-190.51874357,0.0002,2]
[425280927,1781641842000,-413.0,0.00020136,2]
[425280931,1781641842000,-1685.44690976,0.000204,2]
[425280935,1781641842000,-150.0,0.0002058,2]
[425280928,1781641842000,-1685.44690976,0.000202,2]
[425280925,1781641842000,-190.51874357,0.0002,2]
[425280930,1781641842000,-439.82,0.00020376,2]
[425280929,1781641842000,-1798.80895522,0.00020228,2]
[425280934,1781641842000,-150.0,0.0002058,2]
[425280933,1781641842000,-150.0,0.0002058,2]
[425280962,1781641842000,-377.0,0.00021,2]
[425280969,1781641842000,-1205.19,0.00021121,2]
[425281015,1781641842000,-151.0,0.00021872,2]
[425281002,1781641842000,-151.0,0.00021872,2]
[425281005,1781641842000,-151.0,0.00021872,2]
[425281006,1781641842000,-1377.42282658,0.00021872,2]
[425281007,1781641842000,-151.0,0.00021872,2]
[425281009,1781641842000,-1481.2378076,0.00021872,2]
[425281012,1781641842000,-151.0,0.00021872,2]
[425281008,1781641842000,-1428.38747117,0.00021872,2]
[425281011,1781641842000,-1536.04360648,0.00021872,2]
[425281010,1781641842000,-151.0,0.00021872,2]
[425281013,1781641842000,-2005.9555727,0.00021872,2]
[425281016,1781641842000,-1651.81367706,0.00021872,2]
[425281019,1781641842000,-1776.30922209,0.00021872,2]
[425281017,1781641842000,-1712.93078311,0.00021872,2]
[425281023,1781641842000,-151.0,0.00021872,2]
[425281018,1781641842000,-151.0,0.00021872,2]
[425281020,1781641842000,-151.0,0.00021872,2]
[425281014,1781641842000,-1592.87721992,0.00021872,2]
[425281021,1781641842000,-1842.0326633,0.00021872,2]
[425281022,1781641842000,-1910.18787185,0.00021872,2]
[425281025,1781641842000,-151.0,0.00021872,2]
[425281024,1781641842000,-1980.8648231,0.00021872,2]
[425281027,1781641842000,-151.0,0.00021872,2]
[425281028,1781641842000,-151.0,0.00021872,2]
[425280961,1781641842000,-340.0,0.00021,2]
[425281026,1781641842000,-2054.15682156,0.00021872,2]
[425281003,1781641842000,-1280.88388877,0.00021872,2]
[425280995,1781641842000,-1107.63007,0.00021872,2]
[425281004,1781641842000,-1328.27659266,0.00021872,2]
[425281001,1781641842000,-1235.18214925,0.00021872,2]
[425280968,1781641842000,-2385.372871,0.00021,2]
[425280970,1781641842000,-161.57413015,0.000212,2]
[425280967,1781641842000,-156.0,0.00021,2]
[425280971,1781641842000,-1685.44690976,0.000212,2]
[425280973,1781641842000,-1934.38338736,0.00021324,2]
[425280984,1781641842000,-161.57413015,0.000214,2]
[425280988,1781641842000,-774.3465752,0.00021561,2]
[425280986,1781641842000,-413.0,0.00021506,2]
[425280996,1781641842000,-151.0,0.00021872,2]
[425280989,1781641842000,-161.57413015,0.000216,2]
[425280972,1781641842000,-378.55,0.00021273,2]
[425280976,1781641842000,-500.0,0.00021352,2]
[425280974,1781641842000,-500.0,0.00021352,2]
[425280985,1781641842000,-1685.44690976,0.000214,2]
[425280978,1781641842000,-500.0,0.00021352,2]
[425280980,1781641842000,-500.0,0.00021352,2]
[425280990,1781641842000,-23159.85,0.00021642,2]
[425280992,1781641842000,-1030.0,0.00021872,2]
[425280993,1781641842000,-151.0,0.00021872,2]
[425280991,1781641842000,-1685.44690976,0.000217,2]
[425280997,1781641842000,-151.0,0.00021872,2]
[425280998,1781641842000,-1148.61238259,0.00021872,2]
[425280999,1781641842000,-1191.11104074,0.00021872,2]
[425280982,1781641842000,-245.0,0.00021379,2]
[425280994,1781641842000,-1068.11,0.00021872,2]
[425281000,1781641842000,-151.0,0.00021872,2]
[425281067,1781641843000,-746.03,0.00022466,2]
[425281060,1781641843000,-500.0,0.00022261,2]
[425281069,1781641843000,-434.3,0.00022466,2]
[425281068,1781641843000,-2121.92,0.00022466,2]
[425281064,1781641843000,-2080.17592889,0.0002242,2]
[425281062,1781641843000,-500.0,0.00022261,2]
[425281070,1781641843000,-197.24383864,0.00022518,2]
[425281066,1781641843000,-3562.5674868,0.00022465,2]
[425281065,1781641843000,-518.5,0.0002242,2]
[425281063,1781641843000,-500.0,0.00022261,2]
[425281059,1781641843000,-500.0,0.00022261,2]
[425281079,1781641843000,-1292.0,0.00023,2]
[425281085,1781641843000,-377.0,0.00023,2]
[425281082,1781641843000,-258.0,0.00023,2]
[425281078,1781641843000,-228.0,0.00023,2]
[425281080,1781641843000,-1937.0,0.00023,2]
[425281083,1781641843000,-584.0,0.00023,2]
[425281073,1781641843000,-500.0,0.00022929,2]
[425281071,1781641843000,-385.0,0.00022838,2]
[425281072,1781641843000,-500.0,0.00022929,2]
[425281074,1781641843000,-500.0,0.00022929,2]
[425281076,1781641843000,-537.6845,0.00022968,2]
[425281075,1781641843000,-2157.14243826,0.00022968,2]
[425281077,1781641843000,-205.0,0.00023,2]
[425281061,1781641843000,-500.0,0.00022261,2]
[425281081,1781641843000,-271.0,0.00023,2]
[425281058,1781641843000,-439.82,0.00022228,2]
[425281035,1781641843000,-1685.44690976,0.000219,2]
[425281054,1781641843000,-1716.0,0.00022,2]
[425281033,1781641843000,-500.0,0.00021872,2]
[425281034,1781641843000,-161.57413015,0.000219,2]
[425281029,1781641843000,-151.0,0.00021872,2]
[425281030,1781641843000,-151.0,0.00021872,2]
[425281032,1781641843000,-151.0,0.00021872,2]
[425281031,1781641843000,-151.0,0.00021872,2]
[425281036,1781641843000,-5000.0,0.00021918,2]
[425281038,1781641843000,-158.59,0.00021918,2]
[425281037,1781641843000,-1009.32,0.00021918,2]
[425281039,1781641843000,-1260.21680397,0.00021999,10]
[425281043,1781641843000,-1937.0,0.00022,2]
[425281044,1781641843000,-271.0,0.00022,2]
[425281057,1781641843000,-413.0,0.00022191,2]
[425281045,1781641843000,-258.0,0.00022,2]
[425281046,1781641843000,-584.0,0.00022,2]
[425281040,1781641843000,-205.0,0.00022,2]
[425281042,1781641843000,-1292.0,0.00022,2]
[425281048,1781641843000,-377.0,0.00022,2]
[425281047,1781641843000,-340.0,0.00022,2]
[425281049,1781641843000,-1109.0,0.00022,2]
[425281051,1781641843000,-603.0,0.00022,2]
[425281050,1781641843000,-263.0,0.00022,2]
[425281053,1781641843000,-156.0,0.00022,2]
[425281056,1781641843000,-2802.28,0.00022,2]
[425281052,1781641843000,-2385.372871,0.00022,2]
[425281055,1781641843000,-450.0,0.00022,2]
[425281041,1781641843000,-228.0,0.00022,2]
[425281095,1781641843000,-162.37851493,0.00023287,2]
[425281104,1781641843000,-205.0,0.00024,2]
[425281084,1781641843000,-340.0,0.00023,2]
[425281118,1781641843000,-500.0,0.00024,2]
[425281120,1781641843000,-2319.72410669,0.00024064,2]
[425281123,1781641843000,-380.02,0.0002411,2]
[425281128,1781641843000,-500.0,0.00024325,2]
[425281121,1781641843000,-578.20924308,0.00024064,2]
[425281122,1781641843000,-652.77,0.0002411,2]
[425281125,1781641843000,-2128.94,0.00024174,2]
[425281127,1781641843000,-1643.26,0.00024174,2]
[425281126,1781641843000,-923.86,0.00024174,2]
[425281124,1781641843000,-42209.59,0.00024174,2]
[425281129,1781641843000,-2405.55389863,0.00024612,2]
[425281136,1781641843000,-524.95,0.00024658,2]
[425281131,1781641843000,-654.0,0.00024636,10]
[425281134,1781641843000,-1000.0,0.00024658,2]
[425281132,1781641843000,-317.0,0.00024658,2]
[425281133,1781641843000,-320.0,0.00024658,2]
[425281137,1781641843000,-2802.28,0.00024677,7]
[425281135,1781641843000,-449.98,0.00024658,2]
[425281139,1781641843000,-770.0,0.00024893,2]
[425281138,1781641843000,-249.0,0.00024744,2]
[425281130,1781641843000,-599.60298507,0.00024612,2]
[425281141,1781641843000,-524.95,0.00024946,7]
[425281142,1781641843000,-221.0,0.00025,2]
[425281143,1781641843000,-229.24074205,0.00025,2]
[425281086,1781641843000,-1109.0,0.00023,2]
[425281119,1781641843000,-150.0,0.00024,2]
[425281108,1781641843000,-271.0,0.00024,2]
[425281140,1781641843000,-23159.85,0.00024926,7]
[425281116,1781641843000,-2385.372871,0.00024,2]
[425281090,1781641843000,-156.0,0.00023,2]
[425281091,1781641843000,-288.396368,0.00023004,7]
[425281093,1781641843000,-150.0,0.0002326,21]
[425281089,1781641843000,-2385.372871,0.00023,2]
[425281092,1781641843000,-1627.47,0.000231,7]
[425281094,1781641843000,-23159.85,0.00023284,7]
[425281088,1781641843000,-603.0,0.00023,2]
[425281115,1781641843000,-603.0,0.00024,2]
[425281099,1781641843000,-557.5788265,0.00023516,2]
[425281105,1781641843000,-228.0,0.00024,2]
[425281098,1781641843000,-2236.95670847,0.00023516,2]
[425281096,1781641843000,-556.51,0.00023368,2]
[425281097,1781641843000,-2714.55,0.00023368,2]
[425281101,1781641843000,-500.0,0.00023616,2]
[425281106,1781641843000,-1292.0,0.00024,2]
[425281112,1781641843000,-377.0,0.00024,2]
[425281111,1781641843000,-340.0,0.00024,2]
[425281117,1781641843000,-174.0,0.00024,2]
[425281110,1781641843000,-584.0,0.00024,2]
[425281113,1781641843000,-1109.0,0.00024,2]
[425281109,1781641843000,-258.0,0.00024,2]
[425281114,1781641843000,-263.0,0.00024,2]
[425281100,1781641843000,-500.0,0.00023616,2]
[425281087,1781641843000,-263.0,0.00023,2]
[425281103,1781641843000,-152.17690273,0.00023978,2]
[425281107,1781641843000,-1937.0,0.00024,2]
[425281102,1781641843000,-577.0,0.00023751,2]
[425281173,1781641844000,-2494.55939288,0.0002516,2]
[425281177,1781641844000,-1627.47,0.000254,7]
[425281176,1781641844000,-392.32369868,0.00025397,2]
[425281174,1781641844000,-621.78829552,0.0002516,2]
[425281175,1781641844000,-524.95,0.00025234,30]
[425281183,1781641844000,-42209.59,0.00025786,2]
[425281182,1781641844000,-378.55,0.00025786,2]
[425281178,1781641844000,-401.9707934,0.00025431,2]
[425281181,1781641844000,-542.74990657,0.00025708,2]
[425281184,1781641844000,-2128.94,0.00025786,2]
[425281192,1781641844000,-962.0,0.00026035,2]
[425281180,1781641844000,-2586.85809042,0.00025708,2]
[425281186,1781641844000,-1643.26,0.00025786,2]
[425281185,1781641844000,-923.86,0.00025786,2]
[425281189,1781641844000,-550.0,0.00026,2]
[425281187,1781641844000,-524.95,0.00025811,7]
[425281188,1781641844000,-207.49,0.00025844,2]
[425281194,1781641844000,-524.95,0.00026099,30]
[425281193,1781641844000,-152.0,0.0002609,3]
[425281191,1781641844000,-271.44,0.00026027,7]
[425281190,1781641844000,-466.27,0.00026027,7]
[425281195,1781641844000,-326.91626709,0.0002612,2]
[425281171,1781641844000,-206.0,0.00025073,2]
[425281179,1781641844000,-524.95,0.00025523,2]
[425281169,1781641844000,-6078.0,0.00025016,2]
[425281157,1781641844000,-2000.0,0.00025,7]
[425281172,1781641844000,-300.0,0.000251,2]
[425281196,1781641844000,-285.0,0.00026194,7]
[425281151,1781641844000,-150.0,0.00025,2]
[425281148,1781641844000,-585.35838667,0.00025,2]
[425281149,1781641844000,-343.70665361,0.00025,2]
[425281144,1781641844000,-1308.86918073,0.00025,2]
[425281145,1781641844000,-1938.2056228,0.00025,2]
[425281150,1781641844000,-384.55258274,0.00025,2]
[425281146,1781641844000,-273.7170217,0.00025,2]
[425281147,1781641844000,-262.41900411,0.00025,2]
[425281152,1781641844000,-150.0,0.00025,2]
[425281155,1781641844000,-273.45897306,0.00025,2]
[425281153,1781641844000,-1111.8162992,0.00025,2]
[425281154,1781641844000,-150.964,0.00025,2]
[425281161,1781641844000,-347.53,0.00025,2]
[425281159,1781641844000,-347.53,0.00025,2]
[425281156,1781641844000,-619.0,0.00025,2]
[425281160,1781641844000,-347.53,0.00025,2]
[425281158,1781641844000,-347.53,0.00025,2]
[425281163,1781641844000,-347.53,0.00025,2]
[425281164,1781641844000,-347.53,0.00025,2]
[425281162,1781641844000,-347.53,0.00025,2]
[425281165,1781641844000,-347.53,0.00025,2]
[425281170,1781641844000,-500.0,0.00025055,2]
[425281168,1781641844000,-1228.039,0.00025016,2]
[425281167,1781641844000,-347.53,0.00025,2]
[425281166,1781641844000,-347.53,0.00025,2]
[425281200,1781641844000,-392.32369868,0.00026397,2]
[425281212,1781641844000,-194.85348036,0.00027041,7]
[425281197,1781641844000,-2682.57183977,0.00026256,2]
[425281225,1781641844000,-193.01167118,0.0002708,7]
[425281231,1781641844000,-186.97699706,0.0002708,7]
[425281239,1781641844000,-175.32243617,0.00027081,7]
[425281230,1781641844000,-188.68480775,0.0002708,7]
[425281240,1781641844000,-151.96264207,0.00027084,7]
[425281232,1781641844000,-169.99890827,0.0002708,2]
[425281233,1781641844000,-165.81898892,0.0002708,7]
[425281234,1781641844000,-170.7117976,0.00027081,7]
[425281235,1781641844000,-162.61127238,0.00027081,5]
[425281238,1781641844000,-162.95240884,0.00027081,7]
[425281198,1781641844000,-524.95,0.00026388,2]
[425281226,1781641844000,-211.12323692,0.0002708,7]
[425281237,1781641844000,-159.17085174,0.00027081,7]
[425281241,1781641844000,-193.19857659,0.00027084,7]
[425281248,1781641844000,-159.96275635,0.00027158,7]
[425281243,1781641844000,-150.98697652,0.00027084,7]
[425281242,1781641844000,-173.62943011,0.00027084,7]
[425281245,1781641844000,-326.91626709,0.0002712,2]
[425281246,1781641844000,-603.0,0.00027137,2]
[425281247,1781641844000,-174.30691366,0.00027158,7]
[425281249,1781641844000,-184.16659942,0.00027158,7]
[425281250,1781641844000,-193.54514937,0.00027158,7]
[425281251,1781641844000,-962.0,0.00027177,5]
[425281252,1781641844000,-6649.59,0.000272,2]
[425281244,1781641844000,-160.0,0.000271,7]
[425281227,1781641844000,-153.29767478,0.0002708,7]
[425281236,1781641844000,-196.73607187,0.00027081,7]
[425281224,1781641844000,-168.21683863,0.0002708,7]
[425281221,1781641844000,-179.34786672,0.00027066,7]
[425281201,1781641844000,-401.9707934,0.00026431,2]
[425281199,1781641844000,-274.0421014,0.00026397,2]
[425281204,1781641844000,-2781.82699784,0.00026804,2]
[425281203,1781641844000,-524.95,0.00026676,7]
[425281205,1781641844000,-524.95,0.00026964,30]
[425281206,1781641844000,-487.674079,0.00027,2]
[425281208,1781641844000,-152.0,0.00027033,4]
[425281218,1781641844000,-159.33523179,0.00027066,7]
[425281207,1781641844000,-152.17690273,0.00027004,2]
[425281210,1781641844000,-157.69627635,0.00027041,7]